{"text_format":"1","workbook":"xlsx","n_sheets":1,"sheets":["MAPA LAJES"],"not_rendered":{"charts":0,"images":0,"macros":1,"external_links":6,"defined_names":140,"comments":0,"pivot_tables":0},"unopened":[],"bounds":{"document_bytes":16777216,"sheet_cells":100000,"rows_first":2000,"rows_last":500,"rows_between":2000,"halvings":0,"cell_chars":16384,"cell_head_chars":4096},"cells_cut":0,"cells_raw":0,"read":"whole","date_system":"1900"}

{"sheet":"MAPA LAJES","index":0,"n_rows":39,"n_cols":20,"rows_kept":39,"cut":false,"hidden":false,"merged":[[28,13,28,14],[2,18,2,19],[33,13,33,14],[32,13,32,14],[31,13,31,14],[30,13,30,14],[29,13,29,14],[38,13,38,14],[37,13,37,14],[36,13,36,14],[35,13,35,14],[34,13,34,14],[37,1,37,2],[37,3,37,7],[35,11,35,12],[36,11,36,12],[37,11,37,12],[28,1,28,2],[35,1,35,2],[35,3,35,7],[36,1,36,2],[36,3,36,7],[28,11,28,12],[34,3,34,7],[33,3,33,7],[32,3,32,7],[31,3,31,7],[30,3,30,7],[29,3,29,7],[28,3,28,7],[34,11,34,12],[33,11,33,12],[32,11,32,12],[31,11,31,12],[30,11,30,12],[29,11,29,12],[34,1,34,2],[33,1,33,2],[32,1,32,2],[31,1,31,2],[30,1,30,2],[29,1,29,2],[2,1,2,15],[38,1,38,5]]}
[]
[]
[null,"MAPA ILUMINADO QUADRA 35 - MARCAÇÃO DE LAJE",null,null,null,null,null,null,null,null,null,null,null,null,null,null,null,null,"LEGENDA "]
[]
[null,null,null,null,null,null,null,null,null,null,null,null,null,null,null,null,null,null,{"$f":"CONTACOR(S5,$B$6:$P$25)","v":0},"FEVEREIRO"]
[null,null,null,null,null,null,null,null,"PLATIBANDA",null,null,null,null,null,"PLATIBANDA",null,null,null,{"$f":"CONTACOR(S6,$B$6:$O$24)","v":12},"MARÇO"]
[null,null,null,"PLATIBANDA",null,null,null,"PLATIBANDA","3° PAV",null,null,null,null,"PLATIBANDA","3° PAV",null,null,null,{"$f":"CONTACOR(S7,$C$6:$O$24)","v":4},"ABRIL"]
[null,null,"PLATIBANDA","3° PAV",null,null,null,"3° PAV","2° PAV",null,null,null,"PLATIBANDA","3° PAV","2° PAV",null,null,null,{"$f":"CONTACOR(S8,$C$6:$O$24)","v":3},"MAIO"]
[null,null,"3° PAV","2° PAV",null,null,null,"2° PAV","1° PAV",null,null,null,"3° PAV","2° PAV","1° PAV",null,null,null,{"$f":"SUM(S5:S8)","v":19},"TOTAL"]
[null,null,"2° PAV","1° PAV",null,null,null,"1° PAV","TÉRREO",null,null,null,"2° PAV","1° PAV","TÉRREO"]
[null,null,"1° PAV","TÉRREO",null,null,null,"TÉRREO","BLOCO 1B",null,null,null,"1° PAV","TÉRREO","BLOCO 6C"]
[null,null,"TÉRREO","BLOCO 2B",null,null,null,"BLOCO 1A",null,null,null,null,"TÉRREO","BLOCO 6B"]
[null,null,"BLOCO 2A",null,null,null,null,null,null,null,null,null,"BLOCO 6A"]
[]
[]
[null,null,null,null,null,null,null,null,null,"PLATIBANDA",null,null,null,null,"PLATIBANDA"]
[null,null,null,null,null,null,null,null,"PLATIBANDA","3° PAV",null,null,null,"PLATIBANDA","3° PAV"]
[null,null,null,null,"PLATIBANDA",null,null,"PLATIBANDA","3° PAV","2° PAV",null,null,"PLATIBANDA","3° PAV","2° PAV"]
[null,null,null,"PLATIBANDA","3° PAV",null,null,"3° PAV","2° PAV","1° PAV",null,null,"3° PAV","2° PAV","1° PAV"]
[null,null,"PLATIBANDA","3° PAV","2° PAV",null,null,"2° PAV","1° PAV","TÉRREO",null,null,"2° PAV","1° PAV","TÉRREO"]
[null,null,"3° PAV","2° PAV","1° PAV",null,null,"1° PAV","TÉRREO","BLOCO 4C",null,null,"1° PAV","TÉRREO","BLOCO 5C"]
[null,null,"2° PAV","1° PAV","TÉRREO",null,null,"TÉRREO","BLOCO 4B",null,null,null,"TÉRREO","BLOCO 5B"]
[null,null,"1° PAV","TÉRREO","BLOCO 3C",null,null,"BLOCO 4A",null,null,null,null,"BLOCO 5A"]
[null,null,"TÉRREO","BLOCO 3B"]
[null,null,"BLOCO 3A"]
[]
[]
[]
[null,"Cód. Insumo",null,"Insumo Comprado",null,null,null,null,"Unid","Qtde","TOTAL APLICADO","Preço Unit",null,"Total"]
[null,"HID0001572",null,"LUVA PVC ESGOTO SN DN 100 MM",null,null,null,null,"PÇ",12,{"$f":"J30*$S$6","v":144},6.2,null,{"$f":"K30*L30","v":892.80000000000007}]
[null,"HID0008300",null,"LUVA PVC ESGOTO SN DN 150 MM",null,null,null,null,"PÇ",4,{"$f":"J31*$S$6","v":48},23,null,{"$f":"K31*L31","v":1104}]
[null,"ISO0000004",null,"ISOPOR 100 CM X 50 CM X 10 CM",null,null,null,null,"PÇ",2,24,18,null,432]
[null,"HID0001573",null,"LUVA PVC ESGOTO SN DN 50 MM",null,null,null,null,"PÇ",8,96,1.94,null,186.24]
[null,"HID0007814",null,"LUVA PVC ESGOTO SR DN 100 MM",null,null,null,null,"PÇ",4,48,4.87,null,233.76]
[null,"HID0001627",null,"LUVA PVC ESGOTO SN DN 75 MM",null,null,null,null,"PÇ",8,96,6.3,null,604.79999999999995]
[null,null,null,null,null,null,null,null,null,null,null,null,null,0]
[null,null,null,null,null,null,null,null,null,null,null,null,null,0]
[null,null,null,null,null,null,null,null,null,null,null,null,null,0]
[null,"TOTAL",null,null,null,null,null,null,null,null,null,null,null,{"$f":"SUM(N30:N38)","v":3453.6000000000004}]